fUST/lending_fUST_20251209
["ID","MTS","AMOUNT","RATE_DAILY","PERIOD"]
[397789587,1765229448572,-648.8569995,8.493e-05,2]
[397789589,1765229448582,-500.0,8.493e-05,2]
[397789591,1765229448591,-500.0,8.493e-05,2]
[397789593,1765229448600,-500.0,8.493e-05,2]
[397789595,1765229448610,-474.61142357,8.493e-05,2]
[397789597,1765229448619,-787.42,8.493e-05,2]
[397789599,1765229448629,-593.39,8.493e-05,2]
[397789601,1765229448638,-795.1,8.493e-05,2]
[397789603,1765229448648,-500.0,8.493e-05,2]
[397789605,1765229448657,-500.0,8.493e-05,2]
[397789607,1765229448667,-500.0,8.493e-05,2]
[397789609,1765229448677,-500.0,8.493e-05,2]
[397789611,1765229448686,-500.0,8.493e-05,2]
[397789614,1765229448696,-500.0,8.493e-05,2]
[397789616,1765229448705,-500.0,8.493e-05,2]
[397789618,1765229448714,-920.16,8.493e-05,2]
[397789620,1765229448723,-979.32,8.493e-05,2]
[397789622,1765229448732,-1202.12,8.493e-05,2]
[397789624,1765229448742,-500.0,8.493e-05,2]
[397789626,1765229448751,-500.0,8.493e-05,2]
[397789628,1765229448760,-500.0,8.493e-05,2]
[397789630,1765229448770,-720.72,8.493e-05,2]
[397789632,1765229448779,-500.0,8.493e-05,2]
[397789634,1765229448788,-558.85,8.493e-05,2]
[397789636,1765229448798,-500.0,8.493e-05,2]
[397789638,1765229448807,-500.0,8.493e-05,2]
[397789640,1765229448817,-169.61,8.493e-05,2]
[397789642,1765229448827,-500.0,8.493e-05,2]
[397789644,1765229448837,-500.0,8.493e-05,2]
[397789646,1765229448847,-500.0,8.493e-05,2]
[397789648,1765229448857,-500.0,8.493e-05,2]
[397789650,1765229448867,-500.0,8.493e-05,2]
[397789652,1765229448876,-500.0,8.493e-05,2]
[397789655,1765229448886,-1049.39,8.493e-05,2]
[397789657,1765229448895,-500.0,8.493e-05,2]
[397789659,1765229448905,-793.0,8.493e-05,2]
[397789661,1765229448914,-500.0,8.493e-05,2]
[397789682,1765229449104,-695.69,8.493e-05,2]
[397789684,1765229449115,-500.0,8.493e-05,2]
[397789686,1765229449125,-500.0,8.493e-05,2]
[397789687,1765229449134,-500.0,8.493e-05,2]
[397789688,1765229449144,-500.0,8.493e-05,2]
[397789689,1765229449153,-500.0,8.493e-05,2]
[397789690,1765229449162,-500.0,8.493e-05,2]
[397789691,1765229449172,-1335.66,8.493e-05,2]
[397789692,1765229449181,-500.0,8.493e-05,2]
[397789693,1765229449190,-2009.99,8.493e-05,2]
[397789694,1765229449200,-500.0,8.493e-05,2]
[397789695,1765229449209,-500.0,8.493e-05,2]
[397789696,1765229449219,-1227.88,8.493e-05,2]
[397789697,1765229449228,-1360.74,8.493e-05,2]
[397789699,1765229449237,-500.0,8.493e-05,2]
[397789701,1765229449248,-500.0,8.493e-05,2]
[397789703,1765229449258,-500.0,8.493e-05,2]
[397789705,1765229449267,-500.0,8.493e-05,2]
[397789707,1765229449276,-500.0,8.493e-05,2]
[397789709,1765229449286,-712.13,8.493e-05,2]
[397789711,1765229449295,-500.0,8.493e-05,2]
[397789713,1765229449304,-801.8,8.493e-05,2]
[397789715,1765229449313,-500.0,8.493e-05,2]
[397789716,1765229449322,-500.0,8.493e-05,2]
[397789718,1765229449332,-500.0,8.493e-05,2]
[397789720,1765229449341,-500.0,8.493e-05,2]
[397789723,1765229449351,-500.0,8.493e-05,2]
[397789725,1765229449360,-500.0,8.493e-05,2]
[397789726,1765229449370,-805.04,8.493e-05,2]
[397789728,1765229449380,-500.0,8.493e-05,2]
[397789730,1765229449389,-500.0,8.493e-05,2]
[397789732,1765229449398,-664.55,8.493e-05,2]
[397789734,1765229449408,-500.0,8.493e-05,2]
[397789736,1765229449418,-500.0,8.493e-05,2]
[397789738,1765229449427,-500.0,8.493e-05,2]
[397789740,1765229449435,-500.0,8.493e-05,2]
[397789742,1765229449444,-500.0,8.493e-05,2]
[397789744,1765229449454,-1052.66,8.493e-05,2]
[397789746,1765229449463,-500.0,8.493e-05,2]
[397789748,1765229449472,-500.0,8.493e-05,2]
[397789750,1765229449482,-500.0,8.493e-05,2]
[397789752,1765229449491,-500.0,8.493e-05,2]
[397789754,1765229449500,-500.0,8.493e-05,2]
[397789756,1765229449509,-640.48,8.493e-05,2]
[397789758,1765229449518,-825.24,8.493e-05,2]
[397789760,1765229449527,-500.0,8.493e-05,2]
[397789762,1765229449536,-500.0,8.493e-05,2]
[397789764,1765229449545,-500.0,8.493e-05,2]
[397789766,1765229449556,-500.0,8.493e-05,2]
[397789768,1765229449565,-500.0,8.493e-05,2]
[397789770,1765229449573,-500.0,8.493e-05,2]
[397789772,1765229449582,-500.0,8.493e-05,2]
[397789774,1765229449591,-500.0,8.493e-05,2]
[397789776,1765229449601,-500.0,8.493e-05,2]
[397789778,1765229449610,-500.0,8.493e-05,2]
[397789780,1765229449620,-500.0,8.493e-05,2]
[397789782,1765229449629,-1193.62,8.493e-05,2]
[397789784,1765229449638,-500.0,8.493e-05,2]
[397789786,1765229449647,-500.0,8.493e-05,2]
[397789788,1765229449656,-500.0,8.493e-05,2]
[397789790,1765229449665,-609.07,8.493e-05,2]
[397789793,1765229449684,-500.0,8.493e-05,2]
[397789796,1765229449695,-500.0,8.493e-05,2]
[397789798,1765229449705,-500.0,8.493e-05,2]
[397789800,1765229449715,-500.0,8.493e-05,2]
[397789802,1765229449725,-500.0,8.493e-05,2]
[397789804,1765229449734,-500.0,8.493e-05,2]
[397789806,1765229449743,-500.0,8.493e-05,2]
[397789808,1765229449753,-500.0,8.493e-05,2]
[397789810,1765229449763,-500.0,8.493e-05,2]
[397789812,1765229449772,-571.72,8.493e-05,2]
[397789814,1765229449782,-500.0,8.493e-05,2]
[397789816,1765229449791,-500.0,8.493e-05,2]
[397789818,1765229449800,-950.51,8.493e-05,2]
[397789820,1765229449810,-500.0,8.493e-05,2]
[397789822,1765229449820,-500.0,8.493e-05,2]
[397789824,1765229449830,-1082.28,8.493e-05,2]
[397789826,1765229449839,-621.82,8.493e-05,2]
[397789828,1765229449849,-500.0,8.493e-05,2]
[397789830,1765229449858,-500.0,8.493e-05,2]
[397789832,1765229449868,-500.0,8.493e-05,2]
[397789834,1765229449877,-500.0,8.493e-05,2]
[397789836,1765229449887,-225.05351179,8.493e-05,2]
[397789838,1765229449897,-500.0,8.493e-05,2]
[397789840,1765229449906,-500.0,8.493e-05,2]
[397789842,1765229449916,-516.08,8.493e-05,2]
[397789844,1765229449925,-500.0,8.493e-05,2]
[397789846,1765229449935,-4716.71,8.493e-05,2]
[397789848,1765229449944,-500.0,8.493e-05,2]
[397789850,1765229449954,-500.0,8.493e-05,2]
[397789853,1765229449964,-500.0,8.493e-05,2]
[397789855,1765229449974,-500.0,8.493e-05,2]
[397789856,1765229449983,-500.0,8.493e-05,2]
[397789859,1765229449992,-500.0,8.493e-05,2]
[397789861,1765229450002,-500.0,8.493e-05,2]
[397789863,1765229450011,-500.0,8.493e-05,2]
[397789865,1765229450021,-2302.1,8.493e-05,2]
[397789867,1765229450035,-948.57,8.493e-05,2]
[397789869,1765229450045,-500.0,8.493e-05,2]
[397789871,1765229450054,-500.0,8.493e-05,2]
[397789873,1765229450067,-500.0,8.493e-05,2]
[397789874,1765229450077,-500.0,8.493e-05,2]
[397789877,1765229450087,-500.0,8.493e-05,2]
[397789878,1765229450096,-500.0,8.493e-05,2]
[397789881,1765229450107,-500.0,8.493e-05,2]
[397789883,1765229450117,-500.0,8.493e-05,2]
[397789884,1765229450126,-500.0,8.493e-05,2]
[397789887,1765229450136,-1154.84,8.493e-05,2]
[397789889,1765229450146,-500.0,8.493e-05,2]
[397789891,1765229450156,-500.0,8.493e-05,2]
[397789892,1765229450166,-1582.64,8.493e-05,2]
[397789895,1765229450176,-713.29,8.493e-05,2]
[397789897,1765229450186,-500.0,8.493e-05,2]
[397789899,1765229450196,-500.0,8.493e-05,2]
[397789900,1765229450206,-337.24814335,8.493e-05,2]
[397789903,1765229450216,-500.0,8.493e-05,2]
[397789904,1765229450226,-589.68,8.493e-05,2]
[397789907,1765229450237,-500.0,8.493e-05,2]
[397789909,1765229450246,-500.0,8.493e-05,2]
[397789911,1765229450256,-500.0,8.493e-05,2]
[397789912,1765229450266,-500.0,8.493e-05,2]
[397789915,1765229450276,-777.85,8.493e-05,2]
[397789916,1765229450286,-896.83,8.493e-05,2]
[397789918,1765229450296,-500.0,8.493e-05,2]
[397789920,1765229450305,-500.0,8.493e-05,2]
[397789922,1765229450315,-839.38,8.493e-05,2]
[397789924,1765229450325,-2314.45,8.493e-05,2]
[397789926,1765229450335,-656.61,8.493e-05,2]
[397789929,1765229450345,-690.71,8.493e-05,2]
[397789931,1765229450355,-1116.64,8.493e-05,2]
[397789932,1765229450365,-500.0,8.493e-05,2]
[397789935,1765229450375,-775.91,8.493e-05,2]
[397789937,1765229450384,-500.0,8.493e-05,2]
[397789939,1765229450394,-602.26,8.493e-05,2]
[397789941,1765229450403,-1472.26,8.493e-05,2]
[397789943,1765229450413,-500.0,8.493e-05,2]
[397789945,1765229450422,-1174.64,8.493e-05,2]
[397789947,1765229450432,-500.0,8.493e-05,2]
[397789949,1765229450441,-500.0,8.493e-05,2]
[397789951,1765229450450,-500.0,8.493e-05,2]
[397789953,1765229450460,-500.0,8.493e-05,2]
[397789955,1765229450470,-500.0,8.493e-05,2]
[397789957,1765229450480,-500.0,8.493e-05,2]
[397789959,1765229450489,-500.0,8.493e-05,2]
[397789961,1765229450498,-500.0,8.493e-05,2]
[397789963,1765229450508,-500.0,8.493e-05,2]
[397789965,1765229450517,-500.0,8.493e-05,2]
[397789967,1765229450527,-500.0,8.493e-05,2]
[397789969,1765229450536,-500.0,8.493e-05,2]
[397789971,1765229450545,-1162.95,8.493e-05,2]
[397789973,1765229450556,-500.0,8.493e-05,2]
[397789975,1765229450566,-500.0,8.493e-05,2]
[397789977,1765229450575,-998.21,8.493e-05,2]
[397789979,1765229450584,-604.8,8.493e-05,2]
[397789981,1765229450594,-1091.94,8.493e-05,2]
[397789983,1765229450603,-500.0,8.493e-05,2]
[397789985,1765229450613,-429.36880237,8.493e-05,2]
[397789987,1765229450622,-768.37,8.493e-05,2]
[397789989,1765229450631,-614.49,8.493e-05,2]
[397789991,1765229450640,-648.72,8.493e-05,2]
[397789993,1765229450650,-1971.33,8.493e-05,2]
[397789995,1765229450661,-500.0,8.493e-05,2]
[397789997,1765229450671,-724.9,8.493e-05,2]
[397789999,1765229450680,-1004.86,8.493e-05,2]
[397790001,1765229450688,-500.0,8.493e-05,2]
[397790003,1765229450698,-500.0,8.493e-05,2]
[397790005,1765229450707,-500.0,8.493e-05,2]
[397790007,1765229450716,-500.0,8.493e-05,2]
[397790009,1765229450725,-967.58,8.493e-05,2]
[397790011,1765229450735,-1608.07,8.493e-05,2]
[397790013,1765229450744,-500.0,8.493e-05,2]
[397790015,1765229450753,-500.0,8.493e-05,2]
[397790017,1765229450762,-500.0,8.493e-05,2]
[397790019,1765229450772,-500.0,8.493e-05,2]
[397790021,1765229450781,-1031.2,8.493e-05,2]
[397790023,1765229450790,-500.0,8.493e-05,2]
[397790025,1765229450799,-866.5,8.493e-05,2]
[397790027,1765229450808,-500.0,8.493e-05,2]
[397790029,1765229450819,-500.0,8.493e-05,2]
[397790031,1765229450828,-500.0,8.493e-05,2]
[397790033,1765229450837,-500.0,8.493e-05,2]
[397790035,1765229450847,-644.59,8.493e-05,2]
[397790037,1765229450856,-977.19,8.493e-05,2]
[397790039,1765229450865,-500.0,8.493e-05,2]
[397790041,1765229450874,-166.3882429,8.493e-05,2]
[397790043,1765229450884,-500.0,8.493e-05,2]
[397790045,1765229450893,-500.0,8.493e-05,2]
[397790047,1765229450902,-502.97,8.493e-05,2]
[397790049,1765229450911,-500.0,8.493e-05,2]
[397790051,1765229450920,-500.0,8.493e-05,2]
[397790053,1765229450929,-500.0,8.493e-05,2]
[397790055,1765229450938,-500.0,8.493e-05,2]
[397790057,1765229450948,-500.0,8.493e-05,2]
[397790059,1765229450957,-500.0,8.493e-05,2]
[397790061,1765229450966,-500.0,8.493e-05,2]
[397790063,1765229450975,-500.0,8.493e-05,2]
[397790065,1765229450984,-500.0,8.493e-05,2]
[397790067,1765229450993,-500.0,8.493e-05,2]
[397790068,1765229451002,-500.0,8.493e-05,2]
[397790071,1765229451013,-500.0,8.493e-05,2]
[397790072,1765229451025,-619.93,8.493e-05,2]
[397790075,1765229451035,-500.0,8.493e-05,2]
[397790077,1765229451045,-500.0,8.493e-05,2]
[397790078,1765229451054,-500.0,8.493e-05,2]
[397790080,1765229451066,-836.64,8.493e-05,2]
[397790082,1765229451076,-500.0,8.493e-05,2]
[397790084,1765229451086,-500.0,8.493e-05,2]
[397790086,1765229451096,-500.0,8.493e-05,2]
[397790089,1765229451107,-897.06,8.493e-05,2]
[397790091,1765229451117,-1375.9,8.493e-05,2]
[397790093,1765229451127,-500.0,8.493e-05,2]
[397790095,1765229451136,-520.83,8.493e-05,2]
[397790097,1765229451146,-500.0,8.493e-05,2]
[397790099,1765229451155,-573.84,8.493e-05,2]
[397790101,1765229451165,-500.0,8.493e-05,2]
[397790103,1765229451174,-500.0,8.493e-05,2]
[397790105,1765229451184,-500.0,8.493e-05,2]
[397790107,1765229451193,-500.0,8.493e-05,2]
[397790108,1765229451203,-500.0,8.493e-05,2]
[397790111,1765229451212,-952.17,8.493e-05,2]
[397790112,1765229451222,-584.65,8.493e-05,2]
[397790115,1765229451231,-2355.69,8.493e-05,2]
[397790116,1765229451240,-500.0,8.493e-05,2]
[397790119,1765229451250,-500.0,8.493e-05,2]
[397790121,1765229451260,-976.17,8.493e-05,2]
[397790123,1765229451269,-500.0,8.493e-05,2]
[397790125,1765229451278,-1370.66,8.493e-05,2]
[397790127,1765229451288,-500.0,8.493e-05,2]
[397790129,1765229451298,-909.52,8.493e-05,2]
[397790131,1765229451308,-500.0,8.493e-05,2]
[397790132,1765229451319,-500.0,8.493e-05,2]
[397790133,1765229451329,-500.0,8.493e-05,2]
[397790134,1765229451338,-500.0,8.493e-05,2]
[397790135,1765229451348,-500.0,8.493e-05,2]
[397790136,1765229451358,-500.0,8.493e-05,2]
[397790137,1765229451367,-500.0,8.493e-05,2]
[397790138,1765229451376,-500.0,8.493e-05,2]
[397790139,1765229451386,-500.0,8.493e-05,2]
[397790140,1765229451395,-500.0,8.493e-05,2]
[397790141,1765229451405,-237.70346766,8.493e-05,2]
[397790142,1765229451415,-529.71,8.493e-05,2]
[397790143,1765229451424,-500.0,8.493e-05,2]
[397790144,1765229451433,-500.0,8.493e-05,2]
[397790145,1765229451443,-500.0,8.493e-05,2]
[397790146,1765229451452,-4188.46,8.493e-05,2]
[397790147,1765229451461,-500.0,8.493e-05,2]
[397790148,1765229451470,-689.38,8.493e-05,2]
[397790149,1765229451480,-840.87,8.493e-05,2]
[397790150,1765229451489,-1919.82,8.493e-05,2]
[397790151,1765229451498,-247.94840236,8.493e-05,2]
[397790152,1765229451508,-500.0,8.493e-05,2]
[397790153,1765229451517,-500.0,8.493e-05,2]
[397790154,1765229451526,-3682.836384,8.493e-05,2]
[397790155,1765229451535,-557.17,8.493e-05,2]
[397790156,1765229451545,-590.55,8.493e-05,2]
[397790157,1765229451555,-500.0,8.493e-05,2]
[397790158,1765229451566,-796.63,8.493e-05,2]
[397790160,1765229451576,-500.0,8.493e-05,2]
[397790162,1765229451585,-500.0,8.493e-05,2]
[397790164,1765229451594,-500.0,8.493e-05,2]
[397790166,1765229451603,-500.0,8.493e-05,2]
[397790168,1765229451612,-1344.78,8.493e-05,2]
[397790170,1765229451622,-500.0,8.493e-05,2]
[397790172,1765229451631,-595.76,8.493e-05,2]
[397790174,1765229451640,-500.0,8.493e-05,2]
[397790176,1765229451651,-4381.41,8.493e-05,2]
[397790177,1765229451661,-2729.94,8.493e-05,2]
[397790180,1765229451674,-500.0,8.493e-05,2]
[397790181,1765229451683,-500.0,8.493e-05,2]
[397790184,1765229451693,-500.0,8.493e-05,2]
[397790186,1765229451702,-5631.97,8.493e-05,2]
[397790187,1765229451711,-500.0,8.493e-05,2]
[397790189,1765229451720,-1019.24,8.493e-05,2]
[397790192,1765229451729,-1834.24,8.493e-05,2]
[397790193,1765229451739,-507.51,8.493e-05,2]
[397790196,1765229451748,-500.0,8.493e-05,2]
[397790198,1765229451758,-556.84,8.493e-05,2]
[397790199,1765229451767,-500.0,8.493e-05,2]
[397790201,1765229451776,-500.0,8.493e-05,2]
[397790203,1765229451785,-500.0,8.493e-05,2]
[397790205,1765229451795,-500.0,8.493e-05,2]
[397790207,1765229451804,-2780.93,8.493e-05,2]
[397790209,1765229451815,-500.0,8.493e-05,2]
[397790212,1765229451824,-500.0,8.493e-05,2]
[397790213,1765229451834,-500.0,8.493e-05,2]
[397790215,1765229451843,-500.0,8.493e-05,2]
[397790217,1765229451852,-1790.07,8.493e-05,2]
[397790220,1765229451862,-500.0,8.493e-05,2]
[397790221,1765229451871,-500.0,8.493e-05,2]
[397790223,1765229451881,-1522.37,8.493e-05,2]
[397790225,1765229451890,-500.0,8.493e-05,2]
[397790227,1765229451899,-500.0,8.493e-05,2]
[397790229,1765229451908,-1123.51,8.493e-05,2]
[397790231,1765229451919,-500.0,8.493e-05,2]
[397790233,1765229451928,-1318.2,8.493e-05,2]
[397790235,1765229451938,-811.28,8.493e-05,2]
[397790238,1765229451947,-827.91,8.493e-05,2]
[397790240,1765229451957,-1560.48,8.493e-05,2]
[397790241,1765229451966,-500.0,8.493e-05,2]
[397790243,1765229451975,-605.1592506,8.493e-05,2]
[397790246,1765229451985,-7346.18,8.493e-05,2]
[397790247,1765229451994,-500.0,8.493e-05,2]
[397790250,1765229452003,-500.0,8.493e-05,2]
[397790251,1765229452012,-1305.97,8.493e-05,2]
[397790253,1765229452024,-1151.42,8.493e-05,2]
[397790256,1765229452034,-500.0,8.493e-05,2]
[397790258,1765229452043,-500.0,8.493e-05,2]
[397790260,1765229452052,-500.0,8.493e-05,2]
[397790261,1765229452062,-500.0,8.493e-05,2]
[397790264,1765229452073,-7748.61,8.493e-05,2]
[397790265,1765229452082,-500.0,8.493e-05,2]
[397790268,1765229452092,-844.7,8.493e-05,2]
[397790269,1765229452101,-500.0,8.493e-05,2]
[397790271,1765229452113,-500.0,8.493e-05,2]
[397790273,1765229452123,-500.0,8.493e-05,2]
[397790275,1765229452135,-972.15,8.493e-05,2]
[397790277,1765229452144,-500.0,8.493e-05,2]
[397790279,1765229452153,-744.92,8.493e-05,2]
[397790281,1765229452163,-500.0,8.493e-05,2]
[397790283,1765229452173,-2070.79,8.493e-05,2]
[397790285,1765229452182,-500.0,8.493e-05,2]
[397790287,1765229452192,-1898.18,8.493e-05,2]
[397790289,1765229452202,-913.41,8.493e-05,2]
[397790290,1765229452211,-611.87,8.493e-05,2]
[397790292,1765229452221,-500.0,8.493e-05,2]
[397790294,1765229452230,-500.0,8.493e-05,2]
[397790295,1765229452239,-4592.13,8.493e-05,2]
[397790297,1765229452248,-500.0,8.493e-05,2]
[397790299,1765229452257,-1813.27,8.493e-05,2]
[397790301,1765229452266,-634.11,8.493e-05,2]
[397790303,1765229452276,-534.86,8.493e-05,2]
[397790305,1765229452285,-858.06,8.493e-05,2]
[397790307,1765229452294,-16096.58,8.493e-05,2]
[397790309,1765229452304,-500.0,8.493e-05,2]
[397790311,1765229452313,-215.51903692,8.493e-05,2]
[397790313,1765229452323,-67687.06,8.493e-05,2]
[397790315,1765229452332,-1427.23,8.493e-05,2]
[397790317,1765229452341,-500.0,8.493e-05,2]
[397790319,1765229452351,-1380.94,8.493e-05,2]
[397790321,1765229452360,-500.0,8.493e-05,2]
[397790323,1765229452370,-865.58,8.493e-05,2]
[397790325,1765229452379,-718.19,8.493e-05,2]
[397790326,1765229452389,-1998.11,8.493e-05,2]
[397790327,1765229452398,-500.0,8.493e-05,2]
[397790328,1765229452407,-500.0,8.493e-05,2]
[397790329,1765229452416,-500.0,8.493e-05,2]
[397790330,1765229452427,-500.0,8.493e-05,2]
[397790331,1765229452437,-1005.1,8.493e-05,2]
[397790332,1765229452446,-838.78,8.493e-05,2]
[397790333,1765229452455,-611.54,8.493e-05,2]
[397790334,1765229452465,-752.0,8.493e-05,2]
[397790335,1765229452474,-500.0,8.493e-05,2]
[397790336,1765229452483,-1479.83,8.493e-05,2]
[397790337,1765229452492,-4877.51,8.493e-05,2]
[397790338,1765229452501,-714.75,8.493e-05,2]
[397790339,1765229452510,-955.38,8.493e-05,2]
[397790340,1765229452519,-500.0,8.493e-05,2]
[397790341,1765229452529,-1443.15,8.493e-05,2]
[397790342,1765229452538,-500.0,8.493e-05,2]
[397790343,1765229452547,-930.63,8.493e-05,2]
[397790344,1765229452556,-500.0,8.493e-05,2]
[397790345,1765229452565,-1780.21,8.493e-05,2]
[397790346,1765229452575,-500.0,8.493e-05,2]
[397790347,1765229452584,-2883.59,8.493e-05,2]
[397790348,1765229452594,-500.0,8.493e-05,2]
[397790349,1765229452603,-977.39,8.493e-05,2]
[397790350,1765229452612,-500.0,8.493e-05,2]
[397790353,1765229452808,-1037.87,8.493e-05,2]
[397790355,1765229452817,-1225.63,8.493e-05,2]
[397790357,1765229452827,-1237.73,8.493e-05,2]
[397790358,1765229452836,-500.0,8.493e-05,2]
[397790360,1765229452845,-722.08,8.493e-05,2]
[397790362,1765229452855,-500.0,8.493e-05,2]
[397790364,1765229452863,-500.0,8.493e-05,2]
[397790366,1765229452873,-500.0,8.493e-05,2]
[397790368,1765229452882,-2635.87,8.493e-05,2]
[397790370,1765229452891,-500.0,8.493e-05,2]
[397790372,1765229452900,-527.64,8.493e-05,2]
[397790374,1765229452910,-500.0,8.493e-05,2]
[397790376,1765229452919,-1293.16,8.493e-05,2]
[397790378,1765229452928,-7230.08,8.493e-05,2]
[397790380,1765229452937,-582.63,8.493e-05,2]
[397790381,1765229452946,-3214.54,8.493e-05,2]
[397790383,1765229452955,-500.0,8.493e-05,2]
[397790385,1765229452964,-500.0,8.493e-05,2]
[397790387,1765229452974,-4818.74,8.493e-05,2]
[397790389,1765229452983,-369.04190722,8.493e-05,2]
[397790391,1765229452992,-682.38,8.493e-05,2]
[397790393,1765229453002,-519.86,8.493e-05,2]
[397790395,1765229453013,-653.74,8.493e-05,2]
[397790397,1765229453025,-500.0,8.493e-05,2]
[397790399,1765229453036,-500.0,8.493e-05,2]
[397790401,1765229453045,-500.0,8.493e-05,2]
[397790403,1765229453054,-782.17,8.493e-05,2]
[397790404,1765229453063,-2257.86,8.493e-05,2]
[397790406,1765229453074,-712.81,8.493e-05,2]
[397790408,1765229453084,-500.0,8.493e-05,2]
[397790410,1765229453093,-500.0,8.493e-05,2]
[397790412,1765229453103,-500.0,8.493e-05,2]
[397790414,1765229453115,-500.0,8.493e-05,2]
[397790416,1765229453124,-500.0,8.493e-05,2]
[397790418,1765229453134,-500.0,8.493e-05,2]
[397790420,1765229453144,-500.0,8.493e-05,2]
[397790422,1765229453154,-1000.0,8.493e-05,2]
[397790424,1765229453164,-500.0,8.493e-05,2]
[397790426,1765229453174,-1132.77,8.493e-05,2]
[397790428,1765229453184,-1235.91,8.493e-05,2]
[397790430,1765229453194,-1411.2,8.493e-05,2]
[397790432,1765229453204,-500.0,8.493e-05,2]
[397790434,1765229453214,-500.0,8.493e-05,2]
[397790435,1765229453224,-500.0,8.493e-05,2]
[397790437,1765229453233,-500.0,8.493e-05,2]
[397790439,1765229453244,-500.0,8.493e-05,2]
[397790441,1765229453254,-7190.66,8.493e-05,2]
[397790443,1765229453264,-500.0,8.493e-05,2]
[397790445,1765229453273,-1709.34,8.493e-05,2]
[397790447,1765229453282,-1774.73,8.493e-05,2]
[397790449,1765229453292,-500.0,8.493e-05,2]
[397790451,1765229453301,-500.0,8.493e-05,2]
[397790453,1765229453311,-699.45,8.493e-05,2]
[397790455,1765229453320,-500.0,8.493e-05,2]
[397790457,1765229453329,-1823.39,8.493e-05,2]
[397790459,1765229453340,-500.0,8.493e-05,2]
[397790461,1765229453351,-1254.06,8.493e-05,2]
[397790463,1765229453360,-598.73896813,8.493e-05,2]
[397790465,1765229453369,-1257.27,8.493e-05,2]
[397790467,1765229453379,-500.0,8.493e-05,2]
[397790469,1765229453389,-500.0,8.493e-05,2]
[397790471,1765229453405,-500.0,8.493e-05,2]
[397790473,1765229453416,-2073.61,8.493e-05,2]
[397790474,1765229453425,-500.0,8.493e-05,2]
[397790476,1765229453435,-500.0,8.493e-05,2]
[397790478,1765229453444,-1054.78,8.493e-05,2]
[397790480,1765229453455,-500.0,8.493e-05,2]
[397790482,1765229453464,-816.8,8.493e-05,2]
[397790484,1765229453474,-500.0,8.493e-05,2]
[397790486,1765229453484,-500.0,8.493e-05,2]
[397790488,1765229453494,-1725.86,8.493e-05,2]
[397790490,1765229453504,-2757.12,8.493e-05,2]
[397790492,1765229453513,-519.31,8.493e-05,2]
[397790494,1765229453523,-500.0,8.493e-05,2]
[397790496,1765229453532,-500.0,8.493e-05,2]
[397790498,1765229453542,-500.0,8.493e-05,2]
[397790500,1765229453554,-500.0,8.493e-05,2]
[397790502,1765229453563,-604.96559971,8.493e-05,2]
[397790504,1765229453574,-500.0,8.493e-05,2]
[397790506,1765229453585,-500.0,8.493e-05,2]
[397790508,1765229453595,-3269.81,8.493e-05,2]
[397790510,1765229453605,-500.0,8.493e-05,2]
[397790512,1765229453614,-1668.23,8.493e-05,2]
[397790514,1765229453624,-500.0,8.493e-05,2]
[397790516,1765229453634,-500.0,8.493e-05,2]
[397790518,1765229453644,-559.59,8.493e-05,2]
[397790520,1765229453653,-500.0,8.493e-05,2]
[397790522,1765229453664,-1817.85,8.493e-05,2]
[397790524,1765229453674,-500.0,8.493e-05,2]
[397790526,1765229453683,-500.0,8.493e-05,2]
[397790528,1765229453693,-872.22,8.493e-05,2]
[397790530,1765229453703,-9150.85,8.493e-05,2]
[397790532,1765229453713,-2936.22,8.493e-05,2]
[397790534,1765229453722,-500.0,8.493e-05,2]
[397790536,1765229453732,-838.81,8.493e-05,2]
[397790537,1765229453742,-500.0,8.493e-05,2]